Cogmind - Beta 16.1 @@@ ROGUE MODE // 2026.02.12 @ 13:35:14 Player: %41THX3142 Result: Destroyed by G-47 Trooper with Particle Gun Performance ------------- Evolutions (0) 0 Regions Visited (1) 200 Robots Destroyed (10) 50 Value Destroyed (144) 144 Prototype IDs (0) 0 Alien Tech Used (0) 0 Bonus (0) 0 TOTAL SCORE: 394 Bonus ------- None Cogmind --------- Core Integrity 0/250 Matter 280/300 Energy 250/250 System Corruption 12% Temperature Cool (9) Movement Walking (120) Location -10/Materials Parts ------- > --- POWER (1) -------- Ion Engine > --- PROPULSION (2) --- Aluminum Leg Aluminum Leg > --- UTILITY (2) ------ Medium Storage Unit Weapon Shielding > --- WEAPON (2) ------- EM Pulse Gun Hammer > --- INVENTORY (10) --- Ion Engine Aluminum Leg Aluminum Leg Aluminum Leg Aluminum Leg Aluminum Leg Aluminum Leg Aluminum Leg Small Laser Peak State ------------ > --- POWER ------------ Ion Engine > --- PROPULSION ------- Aluminum Leg Aluminum Leg > --- UTILITY ---------- Small Storage Unit Seismic Detector > --- WEAPON ----------- EM Pulse Gun EM Pulse Gun > --- INVENTORY -------- Ion Engine [Rating: 7] Favorites ----------- Power Ion Engine Engine Ion Engine Propulsion Aluminum Leg Leg Aluminum Leg Utility Medium Storage Unit Device Seismic Detector Storage Medium Storage Unit Protection Weapon Shielding Weapon EM Pulse Gun Energy Gun EM Pulse Gun Impact Weapon Hammer Build | -11 -10 ------- Run | Yrd Mat Slots Evolved . | . . Power . | . . Propulsion . | . . Utility . | . . Weapon . | . . Parts Attached 18 | 7 11 Power 2 | 1 1 Engine 2 | 1 1 Core . | . . Reactor . | . . Propulsion 7 | 2 5 Treads . | . . Leg 7 | 2 5 Wheel . | . . Hover . | . . Flight . | . . Utility 4 | 2 2 Device 1 | 1 . Storage 2 | 1 1 Processor . | . . Hackware . | . . Protection 1 | . 1 Artifact . | . . Weapon 5 | 2 3 Energy Gun 4 | 2 2 Energy Cannon . | . . Ballistic Gun . | . . Ballistic Cannon . | . . Launcher . | . . Special Weapon . | . . Impact Weapon 1 | . 1 Slashing Weapon . | . . Piercing Weapon . | . . Special Melee Weapon . | . . Unidentified Prototypes . | . . Corrupted Parts 3 | . 3 System Corruption 11 | . 11 Parts Lost 5 | . 5 Power 1 | . 1 Propulsion 1 | . 1 Utility 1 | . 1 Weapon 2 | . 2 Highest Loss Streak 4 | . 4 To Critical Strikes . | . . Average Backups 5 | . 6 Power 1 | . 1 Propulsion 3 | . 4 Utility . | . . Weapon . | . . Tool/Special . | . . Unused Backups 5 | . 5 Power 1 | . 1 Propulsion 4 | . 4 Utility . | . . Weapon . | . . Tool/Special . | . . Average Slot Usage (%) 89 | . 89 Engine 12 | . 12 Leg 27 | . 27 Device 7 | . 7 Storage 14 | . 14 Protection 6 | . 6 Energy Gun 16 | . 16 Impact Weapon 4 | . 4 Peak Build Rating 7 | 7 7 Average Rating 6 | 5 6 On Entrance 3 | . 7 Avg Prop Armor Cover (%) 25 | . 25 Naked Turns . | . . Heaviest Build 20 | 15 20 Greatest Support 20 | 20 20 Greatest Overweight (x) 3 | 2 3 Average Overweight (x) . | . . Largest Inventory Capacity 10 | 8 10 Average Capacity 9 | 7 9 Most Carried 9 | 1 9 Average Carried 5 | . 6 Final Capacity 10 | 8 10 Final Carried 9 | 1 9 Class Distribution -------------------- 100% | Mutant Dominant Class ---------------- Mutant | -10/Materials Resources | -11 -10 ----------- Run | Yrd Mat Matter Collected 337 | 260 77 Remotely . | . . Salvage Created 214 | 72 142 Parts 13 | 9 4 Haulers Intercepted 1 | . 1 Recyclers Shooed . | . . Parts Field Recycled . | . . Retrieved Matter . | . . Parts Self-Destructed . | . . Prevented . | . . Parts Restored . | . . Kills | -11 -10 ------- Run | Yrd Mat Combat Hostiles Destroyed 3 | . 3 Melee 2 | . 2 Guns 1 | . 1 Classes Destroyed 4 | 1 3 Builder 1 | . 1 Tunneler 5 | 4 1 Hauler 1 | . 1 Grunt 3 | . 3 Best Kill Streak 2 | 2 2 Combat Bots Only 2 | . 2 Max Kills in Single Turn 2 | 2 1 Gunslinging . | . . Exploded . | . . Melee 1 | . 1 Uniques/NPCs Destroyed . | . . Combat | -11 -10 -------- Run | Yrd Mat Hostile Shots Fired 87 | . 87 Missed 19 | . 19 Hits 68 | . 68 Projectile 68 | . 68 Damage Taken 791 | . 791 Core 254 | . 254 Absorbed by Shields . | . . Redirected to Shielding 4 | . 4 Core Remaining (%) 100 | 100 . Volleys Fired 14 | 8 6 Largest 2 | 2 2 Hottest 80 | 80 80 Shots Fired 27 | 16 11 Gun 27 | 16 11 Cannon . | . . Launcher . | . . Special . | . . Kinetic . | . . Thermal . | . . Explosive . | . . Electromagnetic 27 | 16 11 Robot Hit Streak 7 | 2 7 Robot Miss Streak 3 | 3 1 Penetration Max . | . . Secondary Targets 1 | . 1 Max Gunslinging Chain 1 | . 1 Shots Hit Robots 24 | 6 18 Core Hits 12 | 4 8 Critical Kills . | . . Critical Parts Destroyed 1 | . 1 Critical Strikes 2 | 1 1 Corrupt 1 | 1 . Smash 1 | . 1 Melee Attacks 17 | . 17 Impact 17 | . 17 Slashing . | . . Piercing . | . . Sneak Attacks 2 | . 2 Combat Hostiles . | . . Follow-up Attacks . | . . Damage Inflicted 640 | 131 509 Guns 231 | 107 124 Cannons . | . . Explosions 24 | 24 . Melee 311 | . 311 Ramming 74 | . 74 Kinetic . | . . Thermal 24 | 24 . Explosive . | . . Electromagnetic 231 | 107 124 Impact 311 | . 311 Slashing . | . . Piercing . | . . Highest Corruption 12 | . 12 Average Corruption 9 | . 9 Corruption Purged . | . . Corruption Blocked . | . . Effects 12 | . 12 Message Errors 3 | . 3 Matter Fused 3 | . 3 Energy Discharges 2 | . 2 Data Loss (minor) 4 | . 4 Overload Shots . | . . Overflow Damage 70 | . 70 Projectiles . | . . Explosions . | . . Melee 70 | . 70 Knockbacks 2 | . 2 Impact 2 | . 2 Kinetic . | . . Secondary . | . . Self-Inflicted Damage 9 | . 9 Shots . | . . Rammed . | . . Targets Rammed 36 | . 36 Kicked 36 | . 36 Crushed . | . . Highest Temperature 192 | 54 192 Average Temperature 61 | 23 97 Received Heat Transfer 429 | . 429 Siege Activations . | . . Martial Activations . | . . Shielding Activations . | . . Robots Disrupted . | . . Combat Hostiles . | . . Robots Corrupted 2 | . 2 Combat Hostiles . | . . Parts Fried 5 | 1 4 Impact Corruptions 3 | . 3 Robots Melted . | . . Combat Hostiles . | . . Parts Melted . | . . Heat Transferred . | . . Parts Sabotaged . | . . Parts Stolen . | . . Parts Stripped . | . . Power Chain Reactions 1 | 1 . Alert | -11 -10 ------- Run | Yrd Mat Maximum Alert Level . | . . Low Security (%) 100 | 100 100 Level 1 . | . . Level 2 . | . . Level 3 . | . . Level 4 . | . . Level 5 . | . . High Security . | . . Max Security . | . . Peak Influence 42 | 10 42 Initial . | . . Average 4 | . 4 Influence Increases 137 | 20 117 Destroy 0b10 Robot/C 60 | . 60 Destroy 0b10 Robot/NC 35 | 20 15 Destroy Leader 22 | . 22 Destroy Structure 5 | . 5 Lose Combat Pursuer 15 | . 15 Influence Decreases 137 | 20 117 Time Decay 97 | 20 77 Lost Part 40 | . 40 Squads Dispatched 2 | . 2 Investigation 1 | . 1 Extermination . | . . Reinforcement 1 | . 1 Assault . | . . Garrison . | . . Intercept . | . . Searches Triggered . | . . Construction Impeded . | . . Haulers Reinforced . | . . Active Scanning Responses . | . . Cargo Convoy Interrupts . | . . Stealth | -11 -10 --------- Run | Yrd Mat Distress Signals . | . . Communications Jammed . | . . Distress Signals . | . . Times Spotted 8 | . 8 Peak Tracking Total 4 | . 4 Tactical Retreats 1 | . 1 Traps | -11 -10 ------- Run | Yrd Mat Traps Triggered 1 | . 1 Indirectly . | . . Trap Hack Attempts . | . . Triggered . | . . Disarmed . | . . Reprogrammed . | . . Reused . | . . Traps Extracted . | . . Installed . | . . Triggered . | . . Machines | -11 -10 ---------- Run | Yrd Mat Machines Disabled . | . . Max in Single Turn . | . . Machines Repaired . | . . Machines Dismantled . | . . Machines Sabotaged . | . . Overloaded Fab Kills . | . . Hacking | -11 -10 --------- Run | Yrd Mat Machines Accessed 4 | . 4 Terminals 3 | . 3 Fabricators . | . . Repair Stations . | . . Recycling Units 1 | . 1 Scanalyzers . | . . Garrison Access . | . . Total Hacks 10 | . 10 Successful 4 | . 4 Failed 6 | . 6 Catastrophic 1 | . 1 Database Lockouts . | . . Manual 9 | . 9 Terminals 9 | . 9 Fabricators . | . . Repair Stations . | . . Recycling Units 1 | . 1 Scanalyzers . | . . Garrison Access . | . . Terminal Hacks . | . . Fabricator Hacks . | . . Repair Station Hacks . | . . Recycling Unit Hacks 1 | . 1 Report Inventory 1 | . 1 Scanalyzer . | . . Garrison Access Hacks . | . . Unauthorized Hacks 3 | . 3 Terminals 3 | . 3 Botnet 3 | . 3 Fabricators . | . . Repair Stations . | . . Recycling Units . | . . Scanalyzers . | . . Garrison Access . | . . Data Cores Recovered . | . . Used . | . . Hacking Detections 4 | . 4 Full Trace Events . | . . Feedback Events . | . . Feedback Blocked . | . . Robot Schematics Acquired . | . . Robots Built . | . . Authchips . | . . Time . | . . Total Robot Build Rating . | . . Part Schematics Acquired . | . . Parts Built . | . . Authchips . | . . Time . | . . Total Part Build Rating . | . . Part Studies Acquired . | . . Parts Repaired . | . . Time . | . . Parts Recycled . | . . Recycled Matter . | . . Retrieved Matter . | . . Retrieved Components . | . . Parts Scanalyzed . | . . Part Schematics Acquired . | . . Parts Damaged . | . . Bothacking | -11 -10 ------------ Run | Yrd Mat Used RIF Installer . | . . Robots Hacked . | . . Non-combat . | . . Combat . | . . Robot Hacks Applied . | . . Relay Couplers Released . | . . Fabnet Peak Effective % . | . . Robots Rewired . | . . Allies Hacked . | . . Hacks Repelled . | . . Allies | -11 -10 -------- Run | Yrd Mat Total Allies . | . . Largest Group . | . . Highest-Rated Group . | . . Highest-Rated Ally . | . . Total Orders . | . . Ally Attacks . | . . Total Damage . | . . Kills . | . . Allies Corrupted . | . . Allies Melted . | . . Intel | -11 -10 ------- Run | Yrd Mat Active Infowar (turns) 362 | 7 355 Seismic 362 | 7 355 Robot Analysis Total . | . . Derelict Logs Recovered . | . . Drone Launches . | . . Drone Recoveries . | . . Exploration | -11 -10 ------------- Run | Yrd Mat Turns Passed 833 | 140 693 Spaces Moved 406 | 88 318 Core 20 | 14 6 Treads . | . . Legs 386 | 74 312 Wheels . | . . Hover . | . . Flight . | . . Fastest Speed 50 | 50 120 Average Speed 121 | 119 122 Slowest Speed 200 | 150 200 Overloaded Moves . | . . Propulsion Burnouts . | . . Robots Hopped . | . . Potential Cave-ins . | . . Cave-ins Triggered . | . . Exploration Rate (%) 22 | 3 42 Regions Visited 1 Branch Regions . Pre-discovered Areas . | . . Known Exits Taken . | . . Unknown Exits Taken 1 | 1 . Scrap Searched . | . . Spaces Dug 4 | . 4 Terrain Destroyed 9 | 5 4 Melee 4 | . 4 Projectile . | . . AOE 5 | 5 . Terrain Rammed 3 | . 3 Walls Destroyed . | . . Machines Disabled . | . . Actions | -11 -10 --------- Run | Yrd Mat Total 666 | 103 563 Wait 163 | . 163 Move 405 | 87 318 Hop . | . . Pick Up 7 | 1 6 Fast Attach 11 | 7 4 Attach 2 | . 2 Detach 1 | . 1 Swap 5 | . 5 Drop 2 | . 2 Fire 14 | 8 6 Melee 17 | . 17 Ram 3 | . 3 Kick 36 | . 36 Crush . | . . Escape Stasis . | . . Rewire . | . . Trap . | . . Miscellaneous . | . . Route ------- -11/Scrapyard -10/Materials (discovered 1 exit: [*Min]) History --------- Turn | Location | Event 11 | -11/Scrapyard | Discovered new exit (range 15) 141 | -11/Scrapyard | Entered Materials 313 | -10/Materials | Build established: Mutant 328 | -10/Materials | Discovered new exit (range 8) 546 | -10/Materials | Lost 4 parts (1p1u2w) 546 | -10/Materials | Core integrity fell below 50% 561 | -10/Materials | Core integrity fell below 20% 594 | -10/Materials | System corruption reached 10% 834 | -10/Materials | Destroyed by G-47 Trooper with Particle Gun Last Messages --------------- Terminal linked with 2 systems. Awaiting botnet instructions. 00752_ Sneak attack on T-07 Excavator. 00752_ T-07 Excavator suffers critical hit (Smash). 00752_ Destroyed Imp. Terrain Scanner. 00752_ T-07 Excavator system corrupted by crushing effect. 00752_ Wheel fried. 00752_ Lgt. Ion Engine fried. 00752_ T-07 Excavator destroyed. 00753_ ECSNR/MD43D|D3YP99U9IE IE|FXN 00779_ System corrupted: Matter fused (-10). 00795_ System corrupted: Component data lost. 00815_ Sneak attack on U-05 Engineer. 00815_ Destroyed Welding Torch. 00815_ U-05 Engineer system corrupted by crushing effect. 00816_ U-05 Engineer system terminally corrupted. 00816_ Structural Scanner fried. 00816_ Terrain Scanner fried. 00824_ G-47 Trooper knocked back. 00828_ #CT6EVOKJO3=NMI%XVPGALGXOEI0L Map ----- +----------------------------------------------------+ | ??######+## ! #?# ##### | | ???????# #?#######???## | | ???????# ## #????????????# | | ???????#%###+#######???????# | | ???????#!#?# % ##"######### | | ???????# #?# !"""# ## | | ???????# #?# T"## "" # | | ???????# #?# ""## "Y % # | | ???????# #?# ## "" + | | ???????# #?# ## # | | ???????# #?#= ## """ # | | ???????# #?# ## """ ## | | ???????# #?# ## """ ## | | ???????# #?####### ## | | ?????### ###?????########### | | ?????# ############????# | | ?????# ??? | | ?????# ??? | | ?????# ??? | | ?????# #######+####????# | | ####### ##???????????????? | | # # #??????????????????# | | # # #??????????????????? | | # # #??????????????????? | | # # ##########?????????? | | # @# #????????? | | # %g #????????? | | # """#g #????????? | | ; """###+####### #????????? | | # """#???????????? #????????? | | # """#??????????????????????? | | # """#??????????????????????? | | # #??????????????????????? | | #######??????????????????????? | | ?????????????????????????????? | | ?????????????????????????????? | | ?????????????????????????????? | | ?????????????????????????????? | | ?????????????????????????????? | | ?????????????????????????????? | | ?????????????????????????????? | | ?????????????????????????????? | | ?????????????????????????????? | | ?????????????????????????????? | | | | | | | | | | | | | +----------------------------------------------------+ Best States ------------- Heat Dissipation 25 Energy Generation 10 Energy Capacity 250 Matter Stores 300 Matter Capacity 300 Sight Range 16 Terrain Scan Density 10 Weapon Shielding 33 Evasion (%) 55 Item Schematics ----------------- None Robot Schematics ------------------ None Fabricated ------------ Nothing Repaired ---------- Nothing Studied --------- None Alien Tech Used ----------------- None Achievements -------------- A Problem For Future Me Challenges ------------ None Game ------ Seed SlugSwarmModule Manual? 0 Play Time 00:11:14 Cumulative 62.4 hours Start 2026.02.12 @ 13:18:17 End 2026.02.12 @ 13:35:14 Sessions 1 Manual Loads 0 Difficulty Rogue Special Mode None Game No. 52 Rogue 52 Adventurer 0 Explorer 0 Win Type - Total 0 Types 0/0/0/0/0/0/0/0/0/0 Lore% 25 Gallery% 29 Achievement% 24 Wizard Run 0 Options --------- Layout 0 ASCII 0 Keyboard 1 Movement Vi Keybinds 0 Fullscreen 1 Font 36/Smallcaps Map View 76x50 Zoom Use 0% Tactical HUD 1 Map Filters NONE Filters NONE Steam 1 RUN: 427eb0da-6991-4925-8cdf-bcebe1b7e789